bitfinex-derivatives/quotes_SOLF0:USTF0_20240823
["timestamp","ask_amount","ask_price","bid_price","bid_amount"]
[1724427812711,3.4519,144.84,144.78,7.04020429]
[1724427812911,34.59398,144.85,144.79,3.57503004]
[1724427813221,0.04406538,144.83,144.81,0.04764406]
[1724427813419,0.04406538,144.83,144.81,3.49984406]
[1724427814621,0.04406538,144.83,144.82,3.4522]
[1724427815018,0.04406538,144.83,144.82,7.02714066]
[1724427816318,0.04406538,144.83,144.82,3.4522]
[1724427817026,0.04406538,144.83,144.82,3.57412192]
[1724427817220,0.04406538,144.83,144.81,0.04764406]
[1724427817417,0.04406538,144.83,144.81,3.49984406]
[1724427817724,0.04406538,144.83,144.81,0.04764406]
[1724427818030,0.04406538,144.83,144.82,3.4522]
[1724427818418,20.72,145.0,144.82,29.12]
[1724427818617,20.72,145.0,144.84,3.4516]
[1724427818618,3.4509,144.88,144.84,3.4516]
[1724427819425,0.05266914,144.87,144.85,0.0530224]
[1724427819811,0.05266914,144.87,144.85,3.5043224]
[1724427820019,0.05266914,144.87,144.85,0.0530224]
[1724427820220,29.12,144.95,144.86,29.12]
[1724427820523,4.80204555,144.94,144.89,3.4503]
[1724427821622,0.04335308,144.93,144.9,0.04623637]
[1724427822820,0.04335308,144.93,144.9,3.49633637]
[1724427823217,0.04335308,144.93,144.9,0.04623637]
[1724427823417,0.04335308,144.93,144.9,3.54102243]
[1724427823624,0.04335308,144.93,144.9,0.04623637]
[1724427823924,0.04335308,144.93,144.91,3.45]
[1724427824526,0.04335308,144.93,144.9,3.53205348]
[1724427824724,0.04335308,144.93,144.9,0.04623637]
[1724427825025,0.04335308,144.93,144.92,3.4498]
[1724427828628,29.12,145.0,144.91,29.12]
[1724427828827,29.12,145.0,144.93,29.12]
[1724427829226,29.12,144.98,144.92,29.12]
[1724427829723,29.12,144.98,144.94,0.04988588]
[1724427830628,3.4487,144.97,144.94,3.49908588]
[1724427831218,29.12,144.98,144.94,0.04988588]
[1724427832725,3.4487,144.97,144.94,0.04988588]
[1724427833424,3.4487,144.97,144.94,3.49918588]
[1724427833829,3.4487,144.97,144.94,0.04988588]
[1724427834027,3.4489,144.96,144.94,0.04988588]
[1724427834227,29.12,144.98,144.94,0.04988588]
[1724427834628,3.4488,144.97,144.94,0.04988588]
[1724427834829,29.12,144.98,144.94,0.04988588]
[1724427835028,29.12,144.97,144.94,0.04988588]
[1724427835533,29.12,144.97,144.94,3.49918588]
[1724427835731,32.62206355,144.97,144.94,0.04988588]
[1724427836234,3.4489,144.96,144.94,0.04988588]
[1724427836826,6.95066355,144.97,144.94,0.04988588]
[1724427837625,3.4484,144.98,144.94,0.04988588]
[1724427838440,3.4484,144.98,144.94,3.49898588]
[1724427840133,32.65368342,145.0,144.94,0.04988588]
[1724427840331,29.12,144.98,144.94,0.04988588]
[1724427840637,3.4488,144.97,144.94,0.04988588]
[1724427840834,3.4488,144.97,144.94,0.05068997]
[1724427841137,32.60678833,144.98,144.94,0.05068997]
[1724427841339,3.4486,144.97,144.94,0.05068997]
[1724427841538,32.60678833,144.98,144.94,0.05068997]
[1724427842140,3.449,144.96,144.94,0.05068997]
[1724427844437,32.60678833,144.98,144.94,0.05068997]
[1724427844438,3.4486,144.97,144.94,3.49998997]
[1724427844641,32.60678833,144.98,144.94,0.05068997]
[1724427845239,3.4488,144.97,144.94,3.49988997]
[1724427846838,3.4489,144.96,144.94,0.05068997]
[1724427847632,3.4491,144.95,144.94,0.05068997]
[1724427848745,32.5691,144.95,144.94,0.05068997]
[1724427850949,32.5691,144.95,144.89,3.4504]
[1724427850950,3.4497,144.93,144.89,3.4504]
[1724427851843,3.49340486,144.92,144.9,0.04631779]
[1724427852142,0.04360486,144.92,144.9,3.49641779]
[1724427852339,0.04360486,144.92,144.9,0.04631779]
[1724427852735,0.04360486,144.92,144.91,3.45]
[1724427853747,0.04360486,144.92,144.91,32.57]
[1724427853942,1.3436,144.97,144.91,29.12]
[1724427854137,1.3436,144.97,144.91,32.6872813]
[1724427854341,1.3436,144.97,144.91,29.12]
[1724427854548,1.3436,144.97,144.94,3.4491]
[1724427854938,1.3436,144.97,144.94,3.4938312]
[1724427855140,3.4485,144.98,144.94,3.4938312]
[1724427856346,29.12,144.99,144.94,0.0447312]
[1724427856546,29.12,144.97,144.94,0.0447312]
[1724427857048,29.12,144.96,144.94,0.0447312]
[1724427857447,4.8409,144.95,144.94,0.0447312]
[1724427857648,1.3918,144.95,144.83,1.2935]
[1724427857846,3.45,144.92,144.84,34.05965003]
[1724427858043,3.45,144.92,144.85,3.56625003]
[1724427858245,3.45,144.92,144.89,3.4505]
[1724427858445,3.45,144.92,144.84,30.4934]
[1724427858637,0.05094949,144.89,144.87,0.04976156]
[1724427859348,0.05094949,144.89,144.88,7.01995123]
[1724427860851,0.05094949,144.89,144.88,3.4506]
[1724427863553,0.05094949,144.89,144.87,0.04976156]
[1724427864046,0.05094949,144.89,144.87,3.50056156]
[1724427865845,0.05094949,144.89,144.88,3.4507]
[1724427866650,0.05094949,144.89,144.88,32.5707]
[1724427866952,4.8409,144.95,144.88,32.68934539]
[1724427867149,4.8409,144.95,144.85,1.3406]
[1724427867150,4.8409,144.95,144.89,32.68934539]
[1724427867352,4.8409,144.95,144.91,3.4499]
[1724427867543,3.4494,144.94,144.91,3.4499]
[1724427867744,3.4494,144.94,144.91,3.50071479]
[1724427869256,3.4494,144.94,144.91,0.05081479]
[1724427870153,1.3918,144.95,144.91,0.05081479]
[1724427870658,29.12,144.94,144.91,0.05081479]
[1724427870855,32.5698,144.92,144.91,0.05081479]
[1724427872850,29.12,144.92,144.8,258.12]
[1724427873057,7.39119,144.93,144.81,3.57156342]
[1724427873058,29.12,144.89,144.81,3.57156342]
[1724427873252,29.12,144.89,144.8,32.49197237]
[1724427873253,29.12,144.89,144.84,3.4515]
[1724427873558,29.12,144.89,144.85,3.57156342]
[1724427873760,0.04660913,144.88,144.86,0.04438949]
[1724427873955,29.16660913,144.88,144.86,0.04438949]
[1724427874261,3.451,144.87,144.86,0.04438949]
[1724427874651,58.24,144.88,144.78,2.7274]
[1724427874952,58.24,144.88,144.68,38.16927625]
[1724427874953,29.12,144.83,144.79,3.57473173]
[1724427875154,29.12,144.83,144.8,3.57473173]
[1724427875363,29.12,144.83,144.77,3.4533]
[1724427875571,3.4524,144.82,144.78,3.5796602]
[1724427875751,3.4524,144.82,144.73,30.4342]
[1724427875752,0.05134881,144.81,144.79,0.04960208]
[1724427875950,0.05134881,144.81,144.71,1.3763]
[1724427876151,0.05201491,144.77,144.75,0.04363094]
[1724427876356,29.16938558,144.77,144.75,0.04363094]
[1724427877660,29.12,144.76,144.65,229.0]
[1724427877853,9.12007,144.79,144.68,29.12]
[1724427878047,9.12007,144.79,144.68,32.54451181]
[1724427878048,29.12,144.77,144.68,32.54451181]
[1724427878458,29.12,144.75,144.71,3.4546]
[1724427878762,0.04645619,144.74,144.72,0.04566288]
[1724427878957,0.04807912,144.74,144.72,0.04566288]
[1724427879656,0.04807912,144.74,144.72,3.50016288]
[1724427880060,0.04807912,144.74,144.72,0.04566288]
[1724427880359,0.04807912,144.74,144.73,3.4543]
[1724427880762,1.4062,144.84,144.73,29.12]
[1724427880969,1.3948,144.83,144.76,29.12]
[1724427881262,1.3948,144.83,144.77,32.63200815]
[1724427881460,1.3948,144.83,144.77,29.12]
[1724427881659,29.12,144.86,144.77,29.12]
[1724427881858,0.05264266,144.83,144.8,0.04721415]
[1724427882257,3.4524,144.81,144.8,0.04721415]
[1724427882462,29.12,144.82,144.8,0.04721415]
[1724427883361,3.4524,144.81,144.8,0.04721415]
[1724427883967,32.5724,144.81,144.8,0.04721415]
[1724427884262,3.4527,144.8,144.75,3.4538]
[1724427884460,29.12,144.81,144.76,3.58629138]
[1724427884662,29.12,144.81,144.74,1.3201]
[1724427884856,29.12,144.81,144.75,3.58636557]
[1724427885162,29.12,144.81,144.76,3.58636557]
[1724427885355,32.5726,144.81,144.76,3.4536]
[1724427885562,0.04579073,144.8,144.77,0.04471287]
[1724427886667,3.49839073,144.8,144.77,0.04471287]
[1724427887260,0.04579073,144.8,144.77,0.04471287]
[1724427887665,3.49849073,144.8,144.77,0.04471287]
[1724427888573,0.04579073,144.8,144.77,0.04471287]
[1724427889063,0.04579073,144.8,144.79,3.4529]
[1724427889564,0.04579073,144.8,144.79,32.5729]
[1724427889769,60.22044682,144.95,144.81,29.12]
[1724427889770,2.57539,144.89,144.81,29.12]
[1724427889963,29.12,144.9,144.81,29.12]
[1724427890264,3.4508,144.88,144.83,3.4518]
[1724427890666,3.4508,144.88,144.81,29.12]
[1724427890667,0.05192364,144.87,144.81,29.12]
[1724427890967,0.05192364,144.87,144.84,0.04590622]
[1724427892564,0.05192364,144.87,144.85,3.4514]
[1724427893468,0.05192364,144.87,144.84,3.49750622]
[1724427893768,0.05192364,144.87,144.85,3.4514]
[1724427895369,0.05192364,144.87,144.84,3.49750622]
[1724427896265,0.05192364,144.87,144.85,3.4514]
[1724427898567,0.05192364,144.87,144.86,3.4512]
[1724427901667,0.05192364,144.87,144.85,3.4513]
[1724427901971,0.05192364,144.87,144.84,0.04590622]
[1724427902365,0.05192364,144.87,144.85,3.4513]
[1724427902862,0.05192364,144.87,144.86,3.4512]
[1724427904577,0.05192364,144.87,144.85,3.4513]
[1724427905677,0.05192364,144.87,144.84,0.04590622]
[1724427906174,3.4513,144.86,144.84,0.04590622]
[1724427906371,0.05192364,144.87,144.84,0.04590622]
[1724427907476,0.05192364,144.87,144.85,3.4513]
[1724427908076,0.05192364,144.87,144.84,3.49750622]
[1724427908373,3.50292364,144.87,144.84,3.49750622]
[1724427908878,3.4512,144.86,144.84,0.04590622]
[1724427909078,0.05192364,144.87,144.84,0.04590622]
[1724427909281,3.4514,144.85,144.84,0.04590622]
[1724427909474,4.06147364,144.87,144.84,0.04590622]
[1724427909674,0.05192364,144.87,144.84,0.04590622]
[1724427910282,0.05192364,144.87,144.86,3.4512]
[1724427911680,0.05192364,144.87,144.84,0.04590622]
[1724427912086,0.05192364,144.87,144.85,3.4513]
[1724427913280,0.05192364,144.87,144.84,3.49750622]
[1724427913486,0.05192364,144.87,144.84,0.04590622]
[1724427913882,0.05192364,144.87,144.84,3.49750622]
[1724427914288,0.05192364,144.87,144.84,0.04590622]
[1724427915086,0.05192364,144.87,144.85,3.4513]
[1724427915783,0.05192364,144.87,144.84,0.04590622]
[1724427916489,29.15,144.86,144.84,0.04590622]
[1724427916690,29.15,144.85,144.84,0.04590622]
[1724427916890,33.9535,144.85,144.84,0.04590622]
[1724427917089,30.5021,144.85,144.78,1.3726]
[1724427917285,1.3521,144.85,144.78,1.3726]
[1724427917492,4.8037,144.85,144.8,3.4526]
[1724427917694,4.8037,144.85,144.78,1.3726]
[1724427917990,4.8036,144.85,144.81,3.4523]
[1724427918194,0.04646039,144.83,144.8,0.0470398]
[1724427918690,0.04646039,144.83,144.8,3.4995398]
[1724427919285,0.04646039,144.83,144.8,0.0470398]
[1724427919286,3.49836039,144.83,144.8,0.0470398]
[1724427919495,29.15,144.82,144.8,0.0470398]
[1724427920082,3.4524,144.81,144.8,0.0470398]
[1724427921481,9.16653039,144.83,144.8,0.0470398]
[1724427921686,0.04646039,144.83,144.8,0.0470398]
[1724427922083,29.15,144.81,144.72,1.3902]
[1724427922380,29.15,144.78,144.73,3.57901821]
[1724427922582,29.15,144.76,144.74,3.57901821]
[1724427922785,29.15,144.76,144.68,29.15]
[1724427922991,1.2847,144.77,144.69,3.58146761]
[1724427922992,29.15,144.73,144.69,3.58146761]
[1724427923183,29.15,144.73,144.67,2.7083]
[1724427923382,29.15,144.73,144.68,3.58321957]
[1724427923584,0.04564008,144.72,144.7,0.04822847]
[1724427923787,29.15,144.71,144.7,0.04822847]
[1724427923986,29.15,144.71,144.69,0.04968978]
[1724427924185,0.04524829,144.71,144.69,0.05181557]
[1724427924991,0.04524829,144.71,144.7,3.455]
[1724427925293,0.04524829,144.71,144.7,7.03423892]
[1724427925788,0.04524829,144.71,144.7,3.455]
[1724427925997,2.5853,144.77,144.73,3.4542]
[1724427926495,3.4536,144.76,144.71,3.4547]
[1724427926896,3.4536,144.76,144.69,36.45]
[1724427927187,0.04818021,144.74,144.71,0.04476165]
[1724427927390,0.04818021,144.74,144.72,3.4543]
[1724427927798,0.04818021,144.74,144.73,3.4543]
[1724427928888,13.87327,144.82,144.73,40.03132425]
[1724427929096,1.301,144.82,144.74,3.58132425]
[1724427929397,1.301,144.82,144.76,3.4534]
[1724427929695,3.4526,144.8,144.76,3.4534]
[1724427929891,0.05111358,144.8,144.78,0.05301534]
[1724427930091,3.4536,144.76,144.7,1.3992]
[1724427930394,36.45,144.77,144.73,3.4541]
[1724427931388,39.9034,144.77,144.73,3.4541]
[1724427931592,0.05275051,144.76,144.74,0.04664417]
[1724427931895,0.05275051,144.76,144.74,3.50064417]
[1724427932999,0.05275051,144.76,144.74,0.04664417]
[1724427935002,0.05275051,144.76,144.74,3.50064417]
[1724427935391,0.05275051,144.76,144.74,0.04664417]
[1724427935694,0.05275051,144.76,144.75,3.4538]
[1724427936289,0.05275051,144.76,144.74,3.50054417]
[1724427936698,0.05275051,144.76,144.74,0.04664417]
[1724427937997,3.50635051,144.76,144.74,0.04664417]
[1724427938295,39.95635051,144.76,144.74,0.04664417]
[1724427939095,3.4538,144.75,144.74,0.04664417]
[1724427939293,45.62282051,144.76,144.68,1.3847]
[1724427939604,9.17282051,144.76,144.69,3.5887968]
[1724427939909,3.41978693,144.79,144.7,40.0387968]
[1724427940096,12.53985693,144.79,144.71,3.5887968]
[1724427940399,0.04740423,144.76,144.74,0.05207422]
[1724427942499,36.49740423,144.76,144.74,0.05207422]
[1724427942897,3.4538,144.75,144.74,0.05207422]
[1724427943103,0.04740423,144.76,144.74,0.05207422]
[1724427943397,3.4538,144.75,144.74,0.05207422]
[1724427943600,39.9038,144.75,144.74,0.05207422]
[1724427944201,3.4538,144.75,144.74,0.05207422]
[1724427945302,32.6438,144.75,144.74,0.05207422]
[1724427946202,3.4544,144.73,144.69,3.4552]
[1724427946407,32.6444,144.73,144.69,3.4552]
[1724427946811,9.12007,144.75,144.65,30.5053]
[1724427946812,29.19,144.71,144.65,1.3153]
[1724427947201,29.19,144.71,144.66,3.58677267]
[1724427947405,0.04944013,144.69,144.67,3.63154682]
[1724427947606,0.04944013,144.69,144.67,0.04477415]
[1724427948607,0.04944013,144.69,144.68,7.0420264]
[1724427951213,29.19,144.75,144.7,3.4549]
[1724427951510,3.4541,144.74,144.7,3.4549]
[1724427952210,29.19,144.75,144.67,29.19]
[1724427952402,29.19,144.75,144.71,0.05177868]
[1724427952403,0.05076407,144.73,144.71,0.05177868]
[1724427952606,29.24076407,144.73,144.71,0.05177868]
[1724427952912,3.4545,144.72,144.71,0.05177868]
[1724427953104,29.24076407,144.73,144.71,0.05177868]
[1724427953306,3.4545,144.72,144.71,0.05177868]
[1724427953509,29.24076407,144.73,144.71,0.05177868]
[1724427953714,0.05076407,144.73,144.71,0.05177868]
[1724427953908,0.05076407,144.73,144.72,3.4545]
[1724427956317,0.05076407,144.73,144.71,3.50647868]
[1724427958416,0.05076407,144.73,144.72,3.4545]
[1724427959316,0.05076407,144.73,144.71,3.50647868]
[1724427959515,0.05076407,144.73,144.71,0.05177868]
[1724427959921,0.05076407,144.73,144.71,3.50637868]
[1724427960818,3.50516407,144.73,144.71,0.05177868]
[1724427961018,0.05076407,144.73,144.71,0.05177868]
[1724427961615,3.4545,144.72,144.71,0.05177868]
[1724427963825,32.6445,144.72,144.71,0.05177868]
[1724427966026,3.4551,144.7,144.65,1.3153]
[1724427966221,29.19,144.69,144.63,1.4049]
[1724427966422,29.19,144.69,144.64,7.03857402]
[1724427966721,29.19,144.67,144.61,1.4072]
[1724427966920,0.05104899,144.65,144.63,0.04916706]
[1724427967119,0.05104899,144.65,144.64,3.58426524]
[1724427967623,0.05104899,144.65,144.64,3.4564]
[1724427968215,0.05104899,144.65,144.64,7.0426239]
[1724427968720,0.05104899,144.65,144.63,3.50576706]
[1724427969524,0.05104899,144.65,144.63,0.04916706]
[1724427970124,3.50724899,144.65,144.63,0.04916706]
[1724427970323,0.05104899,144.65,144.63,3.50586706]
[1724427970731,29.24104899,144.65,144.63,0.04916706]
[1724427971130,32.6464,144.64,144.63,0.04916706]
[1724427971520,0.05104899,144.65,144.63,0.04916706]
[1724427971824,3.50734899,144.65,144.63,0.04916706]
[1724427972227,0.05104899,144.65,144.63,0.04916706]
[1724427972733,0.05104899,144.65,144.64,3.4564]
[1724427974435,29.24104899,144.65,144.63,0.04916706]
[1724427975536,0.05104899,144.65,144.63,0.04916706]
[1724427976738,29.24104899,144.65,144.63,0.04916706]
[1724427977030,32.69744899,144.65,144.63,0.04916706]
[1724427979144,0.05104899,144.65,144.63,0.04916706]
[1724427979832,29.24104899,144.65,144.63,0.04916706]
[1724427980034,32.69724899,144.65,144.63,0.04916706]
[1724427980334,0.05104899,144.65,144.63,0.04916706]
[1724427981538,29.24104899,144.65,144.63,0.04916706]
[1724427983043,3.4564,144.64,144.63,0.04916706]
[1724427983244,32.6464,144.64,144.63,0.04916706]
[1724427983940,32.6464,144.64,144.56,4.8163759]
[1724427984139,29.19,144.62,144.57,3.59934335]
[1724427984340,29.19,144.62,144.59,3.4574]
[1724427984536,29.19,144.63,144.56,4.8163759]
[1724427984744,29.19,144.63,144.57,3.59895012]
[1724427984944,29.19,144.63,144.6,3.4572]
[1724427985245,0.05014996,144.61,144.6,29.19]
[1724427985440,29.19,144.67,144.6,30.5337]
[1724427985641,3.456,144.66,144.62,3.4567]
[1724427985939,29.19,144.67,144.6,30.5337]
[1724427986145,32.6459,144.67,144.6,30.5337]
[1724427986344,0.04987569,144.65,144.62,0.05227823]
[1724427987143,0.04987569,144.65,144.63,3.4565]
[1724427988137,0.04987569,144.65,144.62,0.05227823]
[1724427988138,0.04987569,144.65,144.64,3.4564]
[1724427988337,27.64,144.75,144.62,29.24227823]
[1724427988338,32.56275,144.71,144.62,29.24227823]
[1724427988543,30.5451,144.71,144.62,29.19]
[1724427988843,3.4552,144.7,144.66,3.4558]
[1724427989045,30.5451,144.71,144.62,29.19]
[1724427989046,30.5451,144.71,144.64,3.53074571]
[1724427989338,27.64,144.75,144.68,29.19]
[1724427989339,1.4108,144.75,144.68,29.19]
[1724427989545,1.4108,144.75,144.68,32.58323355]
[1724427989743,0.0458567,144.73,144.72,3.4545]
[1724427989937,29.19,144.77,144.72,3.4545]
[1724427990141,0.04368532,144.74,144.72,3.4545]
[1724427992345,30.6003,144.82,144.73,29.19]
[1724427992642,30.4816,144.84,144.76,29.19]
[1724427993053,30.4816,144.84,144.72,1.3829]
[1724427993054,30.4816,144.84,144.74,29.19]
[1724427993447,0.04365337,144.8,144.78,0.05156336]
[1724427994547,29.19,144.79,144.78,0.05156336]
[1724427994748,29.19,144.79,144.72,1.3829]
[1724427994749,32.64957253,144.79,144.72,1.3829]
[1724427994946,29.19,144.76,144.73,3.4543]
[1724427995746,29.23848662,144.76,144.74,3.454]
[1724427995945,0.04848662,144.76,144.73,0.04539871]
[1724427996653,0.04848662,144.76,144.75,3.4538]
[1724427997544,36.47,144.81,144.77,3.4532]
[1724427997749,3.4523,144.82,144.77,3.4532]
[1724427998151,36.47,144.81,144.76,3.4535]
[1724427998546,0.05173443,144.8,144.77,0.04985108]
[1724427998754,0.05173443,144.8,144.77,3.50315108]
[1724428000148,0.05173443,144.8,144.78,3.453]
[1724428000544,5.99656,144.87,144.79,36.47]
[1724428000750,5.99656,144.89,144.79,36.47]
[1724428000948,37.7837,144.91,144.82,36.47]
[1724428000949,1.3137,144.91,144.82,36.47]
[1724428001155,1.3137,144.91,144.85,3.4514]
[1724428001748,1.3137,144.91,144.84,3.4515]
[1724428001950,36.52229309,144.89,144.87,0.04538408]
[1724428002657,3.4511,144.87,144.78,2.7603]
[1724428002953,36.47,144.86,144.79,3.57852624]
[1724428003151,36.47,144.86,144.78,2.7603]
[1724428003152,36.47,144.86,144.8,3.57852624]
[1724428003350,36.47,144.86,144.83,3.4517]
[1724428003953,36.51555377,144.86,144.83,3.50343934]
[1724428004146,36.47,144.84,144.76,3.49018705]
[1724428004351,36.47,144.84,144.73,1.374]
[1724428004546,36.47,144.84,144.79,3.4527]
[1724428004849,36.47,144.82,144.73,1.374]
[1724428005050,39.9229,144.79,144.75,3.4536]
[1724428005354,36.47,144.79,144.76,0.04470412]
[1724428005551,0.04477841,144.78,144.77,3.4533]
[1724428005949,36.47,144.83,144.76,0.04470412]
[1724428005950,36.47,144.83,144.76,3.43245282]
[1724428006357,0.04641858,144.79,144.76,3.43245282]
[1724428006553,0.04641858,144.79,144.76,0.04470412]
[1724428007156,0.04641858,144.79,144.77,3.4531]
[1724428007460,0.04641858,144.79,144.76,0.04470412]
[1724428007652,0.04641858,144.79,144.78,3.4531]
[1724428007856,0.04641858,144.79,144.76,0.04470412]
[1724428008260,0.04641858,144.79,144.78,3.4531]
[1724428010259,36.47,144.87,144.78,36.47]
[1724428010455,36.47,144.87,144.79,1.2936]
[1724428010662,36.47,144.87,144.82,3.4519]
[1724428010848,36.47,144.87,144.79,1.2936]
[1724428010849,36.47,144.85,144.79,1.2936]
[1724428011257,0.04675857,144.83,144.81,0.04912122]
[1724428011657,0.04675857,144.83,144.81,3.50142122]
[1724428012253,0.04675857,144.83,144.81,0.04912122]
[1724428012254,36.51675857,144.83,144.81,0.04912122]
[1724428013950,0.04675857,144.83,144.81,0.04912122]
[1724428015459,36.51675857,144.83,144.81,0.04912122]
[1724428017264,36.51675857,144.83,144.74,1.3624]
[1724428017459,36.47,144.81,144.74,1.3624]
[1724428017662,39.9225,144.81,144.77,3.4532]
[1724428018157,0.04835326,144.8,144.78,0.05150905]
[1724428019259,36.47,144.79,144.7,1.3504]
[1724428019457,36.47,144.77,144.7,1.3504]
[1724428019655,39.9235,144.77,144.73,3.4541]
[1724428019857,36.47,144.79,144.7,1.3504]
[1724428020354,0.05296785,144.76,144.74,3.454]
[1724428021652,0.05296785,144.76,144.75,3.4538]
[1724428023259,0.05296785,144.76,144.74,3.4539]
[1724428024351,0.05296785,144.76,144.73,3.50103935]
[1724428024757,0.05296785,144.76,144.73,0.04683935]
[1724428025358,3.50666785,144.76,144.73,0.04683935]
[1724428025560,36.47,144.75,144.73,0.04683935]
[1724428025761,3.38306059,144.74,144.67,3.4556]
[1724428025952,36.47,144.71,144.67,3.4556]
[1724428026155,36.47,144.71,144.64,4.73437348]
[1724428026364,36.47,144.71,144.61,37.8635]
[1724428026365,36.47,144.71,144.61,1.3935]
[1724428026568,36.47,144.68,144.61,1.3935]
[1724428026869,0.04370631,144.66,144.63,0.04485162]
[1724428027558,0.04370631,144.66,144.64,3.4562]
[1724428028564,0.04370631,144.66,144.65,3.4562]
[1724428028765,0.04370631,144.66,144.63,0.04485162]
[1724428029160,0.04370631,144.66,144.64,3.4562]
[1724428029461,36.51370631,144.66,144.63,0.04485162]
[1724428030968,39.9264,144.64,144.63,0.04485162]
[1724428031462,36.51370631,144.66,144.63,0.04485162]
[1724428031660,39.96980631,144.66,144.63,0.04485162]
[1724428031866,36.47,144.64,144.63,0.04485162]
[1724428032568,36.51370631,144.66,144.63,0.04485162]
[1724428033365,36.51370631,144.66,144.62,3.59472288]
[1724428033366,36.47,144.64,144.62,3.59472288]
[1724428034069,36.47,144.64,144.58,3.4577]
[1724428034262,36.47,144.64,144.6,0.04864348]
[1724428034568,3.50574459,144.62,144.6,0.04864348]
[1724428034770,0.04884459,144.62,144.6,0.04864348]
[1724428035370,0.04884459,144.62,144.6,3.50594348]
[1724428036668,0.04884459,144.62,144.61,3.4571]
[1724428037567,0.04884459,144.62,144.61,39.9271]
[1724428038574,0.04884459,144.62,144.61,3.4571]
[1724428042870,0.04884459,144.62,144.6,3.50594348]
[1724428043277,0.04884459,144.62,144.6,0.04864348]
[1724428044772,0.04884459,144.62,144.6,3.50594348]
[1724428045775,0.04884459,144.62,144.61,3.4571]
[1724428046269,0.04884459,144.62,144.6,3.50584348]
[1724428048984,0.04884459,144.62,144.6,0.04864348]
[1724428048985,36.51884459,144.62,144.6,0.04864348]
[1724428050079,39.97584459,144.62,144.6,0.04864348]
[1724428050884,36.51884459,144.62,144.6,0.04864348]
[1724428051579,36.51884459,144.62,144.6,3.50594348]
[1724428051888,3.50594459,144.62,144.6,0.04864348]
[1724428052085,0.04884459,144.62,144.6,0.04864348]
[1724428052276,36.47,144.61,144.6,0.04864348]
[1724428052479,3.4575,144.6,144.56,3.4581]
[1724428052877,46.90167,144.63,144.54,1.4172]
[1724428053079,3.4573,144.61,144.58,3.4577]
[1724428053384,3.4573,144.61,144.58,0.05315074]
[1724428053385,0.04519688,144.61,144.58,0.05315074]
[1724428053584,3.4576,144.59,144.58,0.05315074]
[1724428055583,3.4583,144.57,144.48,1.3989]
[1724428055885,36.47,144.57,144.49,3.60617755]
[1724428056086,39.84230286,144.57,144.48,1.3989]
[1724428056385,39.9288,144.54,144.5,3.4597]
[1724428056580,39.9288,144.54,144.51,0.05317267]
[1724428056785,0.05148888,144.53,144.51,0.05317267]
[1724428057086,0.05148888,144.53,144.51,3.51257267]
[1724428057288,36.52148888,144.53,144.51,0.05317267]
[1724428058184,3.4593,144.52,144.51,0.05317267]
[1724428058393,39.9293,144.52,144.51,0.05317267]
[1724428058589,36.52148888,144.53,144.51,0.05317267]
[1724428059190,39.98068888,144.53,144.51,0.05317267]
[1724428059791,36.52148888,144.53,144.51,0.05317267]
[1724428059993,0.05148888,144.53,144.51,0.05317267]
[1724428060682,0.05148888,144.53,144.51,3.51267267]
[1724428060887,0.05148888,144.53,144.51,0.05317267]
[1724428061284,0.05148888,144.53,144.52,3.4593]
[1724428061894,0.05148888,144.53,144.51,3.51257267]
[1724428062798,0.05148888,144.53,144.52,3.4593]
[1724428063992,36.47,144.59,144.56,3.4582]
[1724428063993,39.9278,144.59,144.56,3.4582]
[1724428064291,36.47,144.63,144.54,36.47]
[1724428064793,36.47,144.63,144.55,1.3955]
[1724428065093,0.05051148,144.6,144.59,3.4574]
[1724428065499,0.05051148,144.6,144.58,0.0439412]
[1724428066095,0.05051148,144.6,144.59,3.4576]
[1724428070095,0.05051148,144.6,144.58,0.0439412]
[1724428070998,0.05051148,144.6,144.59,3.4576]
[1724428072399,36.47,144.68,144.61,3.4569]
[1724428072600,3.4562,144.65,144.61,3.4569]
[1724428072996,36.47,144.66,144.6,3.4573]
[1724428073194,36.47,144.66,144.57,36.47]
[1724428073195,3.4566,144.64,144.57,36.47]
[1724428073605,3.50153764,144.64,144.62,0.04810216]